bitfinex-derivatives/quotes_SOLF0:USTF0_20240904
["timestamp","ask_amount","ask_price","bid_price","bid_amount"]
[1725438064847,0.05486825,130.34,130.32,0.05240179]
[1725438066243,3.8369,130.33,130.32,0.05240179]
[1725438067758,3.89156825,130.34,130.32,0.05240179]
[1725438068046,0.05486825,130.34,130.32,0.05240179]
[1725438068443,3.8369,130.33,130.32,0.05240179]
[1725438071158,0.05486825,130.34,130.32,0.05240179]
[1725438072759,0.05486825,130.34,130.32,23.65240179]
[1725438072943,3.8369,130.33,130.32,0.05240179]
[1725438073261,3.87164311,130.34,130.32,0.05240179]
[1725438073644,3.8369,130.33,130.32,0.05240179]
[1725438077555,23.65486825,130.34,130.26,2.7212]
[1725438077858,23.6,130.31,130.26,2.7212]
[1725438078254,3.8381,130.29,130.26,2.7212]
[1725438078652,3.8387,130.27,130.26,0.05204735]
[1725438078857,3.81986904,130.27,130.26,0.05204735]
[1725438079060,0.05624608,130.29,130.26,0.05204735]
[1725438079457,3.90625667,130.28,130.26,0.05204735]
[1725438080058,7.74475667,130.28,130.26,0.05204735]
[1725438081163,3.89454608,130.29,130.26,0.05204735]
[1725438081866,7.66353809,130.29,130.26,0.05204735]
[1725438082268,0.05624608,130.29,130.27,3.8387]
[1725438083568,0.05624608,130.29,130.27,5.1984]
[1725438084262,0.05624608,130.29,130.28,3.8384]
[1725438084664,0.05624608,130.29,130.27,6.5585]
[1725438085266,0.05624608,130.29,130.27,2.7199]
[1725438087078,0.05624608,130.29,130.26,0.05204735]
[1725438087372,3.89454608,130.29,130.26,0.05204735]
[1725438088275,0.05624608,130.29,130.26,0.05204735]
[1725438088773,3.8387,130.27,130.26,0.05204735]
[1725438090576,3.8385,130.28,130.26,0.05204735]
[1725438091169,23.6,130.28,130.05,11.5355]
[1725438091473,23.6,130.24,130.14,4.1337]
[1725438091666,23.6,130.24,130.15,7.67849404]
[1725438091667,3.8409,130.2,130.15,7.67849404]
[1725438092382,0.05202692,130.19,130.16,3.89222978]
[1725438092678,3.89312692,130.19,130.16,3.89222978]
[1725438092878,0.05202692,130.19,130.16,3.89222978]
[1725438093679,0.05202692,130.19,130.17,3.8415]
[1725438095874,10.356,130.27,130.17,23.6]
[1725438096069,3.76333415,130.27,130.2,23.6]
[1725438096475,3.8395,130.25,130.2,27.4406]
[1725438096876,0.05268592,130.24,130.21,0.05347707]
[1725438097474,0.05268592,130.24,130.21,3.89387707]
[1725438099380,3.89228592,130.24,130.21,3.89387707]
[1725438099578,23.6,130.23,130.21,0.05347707]
[1725438099774,27.53734157,130.23,130.21,0.05347707]
[1725438099976,33.45734157,130.23,130.21,0.05347707]
[1725438100175,3.8402,130.22,130.21,0.05347707]
[1725438100780,3.8412,130.19,130.13,29.52]
[1725438100985,3.8412,130.19,130.14,2.3901826]
[1725438101282,7.62682631,130.19,130.15,6.28646154]
[1725438101470,1.4438,130.25,130.1,1.4282]
[1725438101471,29.52,130.21,130.1,1.4282]
[1725438101676,1.4438,130.25,130.14,0.05026342]
[1725438101677,0.04887061,130.17,130.14,0.05026342]
[1725438101872,29.57122978,130.17,130.14,0.05579291]
[1725438102076,3.88475263,130.16,130.14,0.05579291]
[1725438102472,0.05122978,130.17,130.14,0.05579291]
[1725438102981,3.91869293,130.17,130.14,0.05579291]
[1725438103186,0.05122978,130.17,130.14,0.05579291]
[1725438103373,3.98055083,130.17,130.14,0.05579291]
[1725438103581,0.05122978,130.17,130.14,0.05579291]
[1725438103884,3.89292978,130.17,130.14,0.05579291]
[1725438104084,7.72389293,130.17,130.14,0.05579291]
[1725438106074,0.05122978,130.17,130.14,0.05579291]
[1725438106278,0.05122978,130.17,130.15,29.52]
[1725438106484,0.05122978,130.17,130.15,30.8958]
[1725438106683,0.05122978,130.17,130.15,32.223]
[1725438106883,0.05122978,130.17,130.16,3.842]
[1725438107679,29.52,130.27,130.16,29.52]
[1725438107878,7.673,130.29,130.19,29.52]
[1725438108079,3.8397,130.24,130.19,29.52]
[1725438108397,33.40936315,130.3,130.15,3.77486162]
[1725438108581,3.8413,130.19,130.1,2.6812]
[1725438108783,29.52,130.23,130.16,2.38538434]
[1725438108982,29.52,130.23,130.13,29.57610746]
[1725438108983,0.05799907,130.21,130.18,0.05283777]
[1725438109184,3.8408,130.2,130.18,0.05283777]
[1725438109484,0.05799907,130.21,130.18,0.05283777]
[1725438109789,3.8411,130.2,130.18,0.05283777]
[1725438110282,3.8411,130.19,130.18,0.05283777]
[1725438112080,3.8408,130.2,130.18,0.05283777]
[1725438112983,0.05799907,130.21,130.18,0.05283777]
[1725438114284,0.05799907,130.21,130.19,3.8411]
[1725438114885,0.05799907,130.21,130.18,0.05283777]
[1725438115787,3.8411,130.19,130.18,0.05283777]
[1725438116781,7.59319497,130.19,130.18,0.05283777]
[1725438116981,3.75209497,130.19,130.1,4.1333]
[1725438117183,29.52,130.2,130.1,4.1333]
[1725438117489,3.8421,130.16,130.12,3.8431]
[1725438117882,0.0538206,130.15,130.13,0.05143453]
[1725438118591,3.8961206,130.15,130.13,0.05143453]
[1725438118783,0.0538206,130.15,130.13,0.05143453]
[1725438118990,3.8425,130.14,130.13,0.05143453]
[1725438119192,7.77964436,130.14,130.13,0.05143453]
[1725438119390,3.8425,130.14,130.13,0.05143453]
[1725438119993,7.74428884,130.14,130.13,0.05143453]
[1725438120289,3.8425,130.14,130.13,0.05143453]
[1725438120495,7.68927519,130.14,130.13,0.05143453]
[1725438120689,3.8425,130.14,130.13,0.05143453]
[1725438121185,7.60661086,130.14,130.13,0.05143453]
[1725438123585,3.8961206,130.15,130.13,0.05143453]
[1725438123987,7.76212006,130.15,130.13,0.05143453]
[1725438124483,7.76212006,130.15,130.09,29.52]
[1725438124687,3.91982006,130.15,130.07,29.52]
[1725438124888,3.86599946,130.15,130.07,29.52]
[1725438125187,33.4317532,130.16,130.06,2.7287]
[1725438125596,29.52,130.08,129.93,7.6972]
[1725438125785,0.05462668,130.12,129.93,7.6972]
[1725438125786,7.673,130.12,129.99,1.3834]
[1725438125990,29.52,130.07,129.99,1.3834]
[1725438126289,2.7617,130.11,129.99,1.3834]
[1725438126591,0.05026796,130.06,130.04,0.0581252]
[1725438126795,0.05451694,130.06,130.04,0.0581252]
[1725438127297,29.52,130.08,129.99,3.92124432]
[1725438127894,3.8447,130.07,130.01,3.8462]
[1725438128096,0.05217514,130.05,130.03,0.05886119]
[1725438129092,3.8455,130.04,130.03,0.05886119]
[1725438129291,7.73020502,130.04,130.03,0.05886119]
[1725438130891,3.8455,130.04,130.03,0.05886119]
[1725438131192,37.1594471,130.04,130.03,0.05886119]
[1725438133099,3.8464,130.01,129.95,1.3617]
[1725438133394,3.87619552,130.0,129.95,1.3617]
[1725438133697,29.52,130.04,129.95,1.3617]
[1725438134099,0.05758761,130.01,129.98,0.05564435]
[1725438134801,3.90408761,130.01,129.98,0.05564435]
[1725438135001,3.81155378,130.0,129.98,0.05564435]
[1725438135301,3.847,129.99,129.98,0.05564435]
[1725438136203,3.848,129.96,129.91,3.8493]
[1725438136395,25.685,129.98,129.91,3.8493]
[1725438136698,29.51513745,129.98,129.89,36.14797898]
[1725438136900,3.8481,129.96,129.9,3.8494]
[1725438137289,0.05082421,129.94,129.92,0.053736]
[1725438137492,29.52,130.0,129.92,0.053736]
[1725438137695,3.80473662,130.0,129.91,29.52]
[1725438137901,29.52,130.02,129.93,29.52]
[1725438138105,1.427,130.1,129.89,2.7328]
[1725438138299,29.52,130.05,129.95,29.52]
[1725438138506,0.05703745,130.01,129.99,0.05804464]
[1725438139405,1.427,130.1,129.99,29.57804464]
[1725438139708,32.2817,130.11,129.99,33.28894454]
[1725438140005,3.8449,130.07,130.02,3.8459]
[1725438140207,33.34330056,130.11,130.01,29.52]
[1725438140398,0.04877268,130.07,130.05,0.05907196]
[1725438140599,0.04877268,130.07,130.05,3.90427196]
[1725438141007,0.04877268,130.07,130.05,0.05907196]
[1725438142012,3.8449,130.06,130.05,0.05907196]
[1725438143305,3.89347268,130.07,130.05,0.05907196]
[1725438143511,0.04877268,130.07,130.05,0.05907196]
[1725438143811,3.8449,130.06,130.05,0.05907196]
[1725438144010,0.04877268,130.07,130.05,0.05907196]
[1725438146415,3.8449,130.06,130.05,0.05907196]
[1725438147217,3.89347268,130.07,130.05,0.05907196]
[1725438147614,3.8449,130.06,130.05,0.05907196]
[1725438148813,0.04877268,130.07,130.05,0.05907196]
[1725438149717,0.04877268,130.07,130.05,3.90407196]
[1725438150418,0.04877268,130.07,130.05,0.05907196]
[1725438151511,0.04877268,130.07,130.06,3.8449]
[1725438151712,0.04877268,130.07,130.05,0.05907196]
[1725438154618,0.04877268,130.07,130.05,3.90427196]
[1725438155422,3.8436,130.11,130.07,3.8443]
[1725438156022,3.8437,130.1,130.07,3.8443]
[1725438156527,3.89518794,130.1,130.07,3.89455588]
[1725438157927,3.89518794,130.1,130.07,0.05025588]
[1725438158522,3.8441,130.09,130.07,0.05025588]
[1725438159824,0.05148794,130.1,130.07,0.05025588]
[1725438160223,29.57148794,130.1,130.07,0.05025588]
[1725438160421,3.8443,130.08,130.07,0.05025588]
[1725438160723,33.3643,130.08,130.07,0.05025588]
[1725438165132,29.52,130.08,129.99,3.8469]
[1725438165330,29.52,130.05,129.99,3.8469]
[1725438165532,3.8458,130.03,129.99,3.8469]
[1725438165727,7.60204232,130.03,129.99,3.8469]
[1725438166125,3.90482271,130.02,130.0,0.05710142]
[1725438166930,7.83727716,130.02,130.0,0.05710142]
[1725438167431,3.99117716,130.02,130.0,0.05710142]
[1725438168134,7.83727716,130.02,130.0,0.05710142]
[1725438168634,3.8464,130.01,130.0,0.05710142]
[1725438168830,3.99117716,130.02,130.0,0.05710142]
[1725438169733,7.83747716,130.02,130.0,0.05710142]
[1725438170030,3.99117716,130.02,130.0,0.05710142]
[1725438170235,3.8464,130.01,130.0,0.05710142]
[1725438170434,33.3664,130.01,130.0,0.05710142]
[1725438175935,33.3664,130.01,129.63,3.53271927]
[1725438175936,23.67,130.01,129.8,23.67]
[1725438176137,23.67,129.97,129.88,25.0295]
[1725438176327,23.67,129.95,129.88,1.3595]
[1725438176534,3.8485,129.94,129.88,1.3595]
[1725438176736,3.91981009,129.93,129.88,1.3595]
[1725438176941,3.97452225,129.93,129.91,1.43886336]
[1725438177931,0.05471216,129.93,129.91,0.05526336]
[1725438178328,7.62410232,129.92,129.91,0.05526336]
[1725438178939,3.90361216,129.93,129.91,0.05526336]
[1725438179238,0.05471216,129.93,129.91,0.05526336]
[1725438179537,29.56,129.96,129.91,0.05526336]
[1725438179733,29.56,129.99,129.88,32.2657]
[1725438180135,3.8474,129.98,129.94,3.8484]
[1725438180338,0.0572906,129.97,129.95,0.0511892]
[1725438180632,0.05479009,129.97,129.95,0.0556487]
[1725438182731,3.90249009,129.97,129.95,0.0556487]
[1725438183841,0.05479009,129.97,129.95,0.0556487]
[1725438184341,0.05479009,129.97,129.95,3.9036487]
[1725438185943,0.05479009,129.97,129.96,3.8479]
[1725438186136,7.78796231,130.01,129.95,0.0556487]
[1725438186337,3.8466,130.01,129.95,0.0556487]
[1725438186736,3.75738951,130.01,129.95,0.0556487]
[1725438187048,0.0532265,129.99,129.98,3.847]
[1725438188040,106.20871906,130.58,129.97,0.04927716]
[1725438188041,29.56,130.07,129.97,29.60927716]
[1725438188347,29.56,130.07,129.94,2.8144]
[1725438188348,29.56,130.09,129.99,29.56]
[1725438188545,3.8441,130.09,130.05,3.8449]
[1725438188751,29.56,130.11,130.01,29.56]
[1725438188947,0.05749357,130.07,130.06,3.8449]
[1725438189142,29.56,130.13,130.06,3.8449]
[1725438189353,29.56,130.13,130.08,0.05216733]
[1725438189551,0.04893338,130.11,130.08,0.05216733]
[1725438189946,3.87593592,130.15,130.08,2.76456733]
[1725438190147,29.56,130.17,130.08,2.76456733]
[1725438190348,29.56,130.17,130.08,2.7124]
[1725438190651,3.842,130.16,130.09,29.56]
[1725438190956,0.05807515,130.14,130.11,0.05296784]
[1725438192250,7.75179853,130.17,130.11,0.05296784]
[1725438193258,0.04976971,130.15,130.12,3.8431]
[1725438193851,0.04976971,130.15,130.13,3.8428]
[1725438196859,0.04976971,130.15,130.14,3.8425]
[1725438201659,29.56,130.21,130.16,3.8419]
[1725438201858,4.1863,130.24,130.16,3.8419]
[1725438201859,29.56,130.23,130.16,3.8419]
[1725438202159,33.35956086,130.23,130.16,3.8419]
[1725438202763,0.05882198,130.21,130.18,0.0566613]
[1725438202955,3.89952198,130.21,130.18,0.0566613]
[1725438203354,0.05882198,130.21,130.18,3.8979613]
[1725438203858,0.05882198,130.21,130.18,0.0566613]
[1725438209458,0.05882198,130.21,130.18,3.8979613]
[1725438210165,0.05882198,130.21,130.18,0.0566613]
[1725438211663,0.05882198,130.21,130.18,3.8979613]
[1725438212664,3.89932198,130.21,130.18,3.8979613]
[1725438212965,0.05882198,130.21,130.18,3.8979613]
[1725438217472,3.89932198,130.21,130.18,3.8979613]
[1725438217972,3.89932198,130.21,130.18,0.0566613]
[1725438218171,3.8408,130.2,130.18,0.0566613]
[1725438220169,0.05882198,130.21,130.18,0.0566613]
[1725438220567,0.05882198,130.21,130.18,3.8977613]
[1725438222671,0.05882198,130.21,130.18,0.0566613]
[1725438223080,3.8408,130.2,130.18,0.0566613]
[1725438224592,3.89942198,130.21,130.18,3.8980613]
[1725438226181,3.89942198,130.21,130.18,0.0566613]
[1725438226687,0.05882198,130.21,130.18,0.0566613]
[1725438227185,0.05882198,130.21,130.19,3.8409]
[1725438227573,3.89932198,130.21,130.18,0.0566613]
[1725438227783,3.89932198,130.21,130.18,3.8978613]
[1725438228083,3.8411,130.2,130.18,0.0566613]
[1725438228284,23.66882198,130.21,130.18,0.0566613]
[1725438228478,23.61,130.2,130.18,0.0566613]
[1725438228680,23.61,130.2,130.11,2.7539]
[1725438228991,23.61,130.18,130.11,6.5972]
[1725438229286,3.8424,130.15,130.11,6.5972]
[1725438229482,23.61,130.18,130.12,3.8431]
[1725438229678,0.05773166,130.16,130.14,0.05269541]
[1725438230082,3.99586563,130.16,130.14,0.05269541]
[1725438231379,7.83796563,130.16,130.14,0.05269541]
[1725438233584,3.89983166,130.16,130.14,0.05269541]
[1725438233896,0.05773166,130.16,130.14,0.05269541]
[1725438234191,0.05773166,130.16,130.14,23.66269541]
[1725438234391,0.05773166,130.16,130.15,3.8422]
[1725438235685,3.8409,130.2,130.17,3.8415]
[1725438236693,3.89726465,130.2,130.17,3.89991582]
[1725438237096,0.05636465,130.2,130.17,0.05841582]
[1725438238287,3.89716465,130.2,130.17,3.89991582]
[1725438240391,0.05636465,130.2,130.18,3.8414]
[1725438240591,0.05636465,130.2,130.17,23.66841582]
[1725438241092,0.05636465,130.2,130.18,3.8412]
[1725438247895,0.05636465,130.2,130.19,3.8411]
[1725438248589,0.05636465,130.2,130.19,27.4511]
[1725438251394,250.61,130.29,130.19,23.61]
[1725438251599,23.61,130.29,130.2,23.61]
[1725438252197,23.61,130.29,130.21,3.8402]
[1725438252389,0.05607345,130.26,130.23,0.05196881]
[1725438253589,0.05607345,130.26,130.23,3.89156881]
[1725438254703,0.05607345,130.26,130.24,3.8396]
[1725438255200,0.05607345,130.26,130.23,3.89166881]
[1725438255397,0.05607345,130.26,130.23,0.05196881]
[1725438255598,23.66607345,130.26,130.23,0.05196881]
[1725438256601,3.8396,130.24,130.23,0.05196881]
[1725438259407,3.8396,130.24,130.19,3.8408]
[1725438259704,23.61,130.24,130.18,3.8412]
[1725438259912,23.61,130.24,130.15,24.9666]
[1725438260102,3.8406,130.21,130.15,24.9666]
[1725438260304,3.92957666,130.21,130.18,3.8414]
[1725438260499,3.89917094,130.21,130.18,0.0495086]
[1725438260811,3.79127892,130.2,130.18,0.0495086]
[1725438261811,3.8411,130.19,130.18,0.0495086]
[1725438262002,7.75108448,130.19,130.18,0.0495086]
[1725438262202,3.8411,130.19,130.18,0.0495086]
[1725438262403,13.38847003,130.19,130.03,11.49332239]
[1725438262604,9.45,130.17,130.1,9.45]
[1725438263011,3.8421,130.16,130.12,3.8431]
[1725438263211,9.45,130.17,130.1,9.45]
[1725438263407,3.89160438,130.15,130.12,0.05761929]
[1725438264709,3.8426,130.14,130.12,0.05761929]
[1725438265715,3.8428,130.13,130.12,0.05761929]
[1725438275624,0.04930438,130.15,130.12,0.05761929]
[1725438276726,0.04930438,130.15,130.13,23.63]
[1725438277231,0.04930438,130.15,130.13,26.3291]
[1725438277535,0.04930438,130.15,130.14,3.8425]
[1725438279424,0.04930438,130.15,130.13,30.1719]
[1725438279623,0.04930438,130.15,130.13,2.6991]
[1725438279821,0.04930438,130.15,130.13,1.3758]
[1725438280025,3.89170438,130.15,130.13,1.3758]
[1725438281226,0.04930438,130.15,130.13,5.2185]
[1725438281931,0.04930438,130.15,130.14,3.8425]
[1725438286534,0.04930438,130.15,130.12,0.05761929]
[1725438288634,3.8428,130.13,130.12,0.05761929]
[1725438297343,23.63,130.14,130.04,96.02644114]
[1725438297344,3.8442,130.09,130.04,96.02644114]
[1725438297639,7.63234694,130.09,130.04,98.79904114]
[1725438298244,7.63234694,130.09,130.04,100.15274114]
[1725438298441,0.05007124,130.08,130.05,0.04939364]
[1725438299044,3.8449,130.07,130.05,0.04939364]
[1725438299241,0.05007124,130.08,130.05,0.04939364]
[1725438299635,3.8449,130.06,130.05,0.04939364]
[1725438301246,3.8449,130.07,130.05,0.04939364]
[1725438301746,3.8449,130.06,130.05,0.04939364]
[1725438303246,3.8447,130.07,130.05,0.04939364]
[1725438303854,0.05007124,130.08,130.05,0.04939364]
[1725438304534,3.8446,130.07,130.05,0.04939364]
[1725438304940,3.8448,130.07,130.05,0.04939364]
[1725438305142,23.68007124,130.08,130.05,0.04939364]
[1725438305752,3.8449,130.06,130.05,0.04939364]
[1725438306243,0.05007124,130.08,130.05,0.04939364]
[1725438306743,0.05007124,130.08,130.06,3.8446]
[1725438308044,0.05007124,130.08,130.06,3.8447]
[1725438308246,0.05007124,130.08,130.05,4.11919364]
[1725438309147,0.05007124,130.08,130.07,3.8446]
[1725438310041,1.4488,130.16,130.09,3.844]
[1725438310347,2.7479,130.17,130.06,27.39460281]
[1725438310348,23.63,130.15,130.06,27.39460281]
[1725438310746,3.843,130.13,130.06,27.39460281]
[1725438311043,0.05438835,130.11,130.08,0.05284005]
[1725438311249,0.05438835,130.11,130.09,3.8438]
[1725438311552,0.05438835,130.11,130.08,23.68284005]
[1725438311945,23.63,130.17,130.1,3.8435]
[1725438312449,3.8429,130.13,130.1,3.8435]
[1725438312650,3.87821666,130.12,130.09,3.8439]
[1725438312947,3.9330651,130.12,130.09,3.89279641]
[1725438313845,3.9330651,130.12,130.1,3.8437]
[1725438314054,3.9330651,130.12,130.09,0.04889641]
[1725438314351,0.05484844,130.12,130.09,3.89269641]
[1725438314647,7.6856129,130.12,130.09,3.89269641]
[1725438314837,3.89804844,130.12,130.09,3.89269641]
[1725438315040,3.8435,130.11,130.09,0.04889641]
[1725438315242,3.9181565,130.12,130.09,0.04889641]
[1725438315550,27.5481565,130.12,130.09,0.04889641]
[1725438315846,3.8437,130.1,130.09,0.04889641]
[1725438316043,3.9181565,130.12,130.09,0.04889641]
[1725438316449,3.8436,130.11,130.09,0.04889641]
[1725438316954,3.9181565,130.12,130.09,3.89269641]
[1725438317854,7.7612565,130.12,130.09,3.89269641]
[1725438318046,0.05484844,130.12,130.09,0.04889641]
[1725438318755,0.05484844,130.12,130.09,3.89279641]
[1725438320454,3.89804844,130.12,130.09,0.04889641]
[1725438320654,23.68484844,130.12,130.09,0.04889641]
[1725438320951,27.51163224,130.12,130.09,0.04889641]
[1725438321654,3.8437,130.1,130.09,0.04889641]
[1725438322957,3.8437,130.11,130.09,0.04889641]
[1725438324560,27.51163224,130.12,130.09,0.04889641]
[1725438324947,3.8437,130.1,130.09,0.04889641]
[1725438331070,3.88163224,130.12,130.09,0.04889641]
[1725438331272,3.88163224,130.12,130.09,9.49889641]
[1725438331665,0.05484844,130.12,130.1,3.8436]
[1725438331966,0.05484844,130.12,130.09,9.49889641]
[1725438332165,0.05484844,130.12,130.11,3.8434]
[1725438332668,0.05484844,130.12,130.09,0.04889641]
[1725438332669,3.93144059,130.12,130.09,0.04889641]
[1725438332962,0.05484844,130.12,130.09,0.04889641]
[1725438333166,0.05484844,130.12,130.09,9.49889641]
[1725438333367,7.76799029,130.12,130.09,9.49889641]
[1725438333572,3.89814844,130.12,130.09,9.49889641]
[1725438333971,3.89814844,130.12,130.09,0.04889641]
[1725438334165,7.66111407,130.12,130.09,0.04889641]
[1725438334567,7.66111407,130.12,130.09,3.89279641]
[1725438335073,7.66111407,130.12,130.09,0.04889641]
[1725438335263,3.8435,130.11,130.09,0.04889641]
[1725438335865,3.89804844,130.12,130.09,3.89289641]
[1725438336570,3.8435,130.11,130.09,3.89289641]
[1725438337275,3.8435,130.11,130.09,0.04889641]
[1725438337974,3.8435,130.11,130.09,3.89289641]
[1725438338178,3.89814844,130.12,130.09,0.04889641]
[1725438338876,3.89814844,130.12,130.09,3.89279641]
[1725438341574,0.05484844,130.12,130.1,3.8437]
[1725438341774,0.05484844,130.12,130.09,23.68889641]
[1725438341978,0.05484844,130.12,130.1,1.3901]
[1725438342176,0.05484844,130.12,130.11,3.8434]
[1725438342380,0.05484844,130.12,130.11,5.247]
[1725438345582,0.05484844,130.12,130.11,1.4036]
[1725438346377,0.05484844,130.12,130.09,0.04889641]
[1725438346577,3.8437,130.1,130.09,0.04889641]
[1725438347888,3.8436,130.11,130.09,0.04889641]
[1725438352785,3.8434,130.11,130.09,0.04889641]
[1725438352985,3.96937657,130.12,130.09,0.04889641]
[1725438353488,7.81267657,130.12,130.09,0.04889641]
[1725438353681,3.96937657,130.12,130.09,0.04889641]
[1725438355396,3.8437,130.1,130.09,0.04889641]
[1725438357498,3.8436,130.11,130.09,0.04889641]
[1725438357795,9.45,130.11,130.09,0.04889641]
[1725438357990,3.8437,130.1,130.09,0.04889641]
[1725438358800,3.8436,130.11,130.09,0.04889641]
[1725438359094,13.41937657,130.12,130.09,0.04889641]
[1725438359595,3.8434,130.11,130.09,0.04889641]
[1725438360789,13.41937657,130.12,130.09,0.04889641]
[1725438360790,3.8437,130.1,130.09,0.04889641]
[1725438361994,3.8436,130.11,130.09,0.04889641]
[1725438363100,3.8437,130.1,130.09,0.04889641]
[1725438366002,0.05484844,130.12,130.09,9.49889641]
[1725438366301,0.05484844,130.12,130.1,9.45]
[1725438367204,0.05484844,130.12,130.11,3.8434]
[1725438367802,3.77553596,130.19,130.13,3.8427]
[1725438368109,9.45,130.19,130.13,13.2927]
[1725438368402,9.45,130.16,130.11,3.8434]
[1725438368796,3.8940802,130.15,130.12,3.89387991]
[1725438369000,13.40196251,130.15,130.12,0.05077991]
[1725438369196,9.5015802,130.15,130.12,0.05077991]
[1725438369405,3.8427,130.14,130.12,0.05077991]
[1725438369702,7.66851109,130.14,130.12,0.05077991]
[1725438371605,7.66851109,130.14,130.11,2.89417991]
[1725438372606,7.66851109,130.14,130.11,2.94459761]
[1725438373408,3.8427,130.14,130.11,2.94459761]
[1725438376407,3.8427,130.14,130.12,3.843]
[1725438377010,3.8939802,130.15,130.12,3.843]
[1725438383912,3.8426,130.14,130.11,3.8937177]
[1725438384607,3.8429,130.13,130.11,0.0504177]
[1725438385316,3.8431,130.12,130.11,0.0504177]
[1725438389426,3.843,130.13,130.11,0.0504177]
[1725438390833,0.0515802,130.15,130.11,9.5004177]
[1725438392432,3.8939802,130.15,130.12,3.8431]
[1725438393322,3.8426,130.14,130.11,3.8937177]
[1725438393725,9.45,130.14,130.11,0.0504177]
[1725438394432,3.8431,130.12,130.11,0.0504177]
[1725438395635,3.843,130.13,130.11,0.0504177]
[1725438397530,3.8431,130.12,130.11,0.0504177]
[1725438397936,3.843,130.13,130.11,0.0504177]
[1725438402136,0.0515802,130.15,130.12,3.8431]
[1725438404648,0.0515802,130.15,130.11,0.0504177]
[1725438404838,3.91161998,130.14,130.11,0.0504177]
[1725438405033,7.75441998,130.14,130.11,0.0504177]
[1725438406839,7.75441998,130.14,130.11,3.8938177]
[1725438409347,7.75441998,130.14,130.11,0.0504177]
[1725438410843,0.0515802,130.15,130.11,0.0504177]
[1725438411242,3.96456371,130.15,130.11,0.0504177]
[1725438411945,0.0515802,130.15,130.12,9.45]
[1725438412645,0.0515802,130.15,130.13,3.8426]
[1725438414153,0.0515802,130.15,130.12,3.8431]
[1725438414445,9.45,130.13,130.11,0.0504177]
[1725438414651,3.8431,130.12,130.11,0.0504177]
[1725438415247,7.6229658,130.12,130.11,0.0504177]
[1725438419854,3.8431,130.12,130.11,0.0504177]
[1725438420057,3.8429,130.13,130.11,0.0504177]
[1725438420258,7.61777645,130.13,130.11,0.0504177]
[1725438424864,3.8431,130.12,130.11,0.0504177]
[1725438427764,0.0515802,130.15,130.11,9.5004177]
[1725438428057,0.0515802,130.15,130.13,3.8427]
[1725438430765,0.0515802,130.15,130.12,9.45]
[1725438432461,0.0515802,130.15,130.13,3.8428]
[1725438433664,0.0515802,130.15,130.12,13.293]
[1725438435362,0.0515802,130.15,130.14,9.45]
[1725438435567,3.76614095,130.22,130.16,3.8418]
[1725438435858,9.45,130.21,130.15,9.45]
[1725438436065,3.8414,130.18,130.14,3.8424]
[1725438436464,0.0573704,130.17,130.15,0.05696037]
[1725438437166,0.0573704,130.17,130.15,3.89916037]
[1725438437560,9.5073704,130.17,130.15,0.05696037]
[1725438438968,3.842,130.16,130.15,0.05696037]
[1725438441462,13.292,130.16,130.15,0.05696037]
[1725438444369,3.842,130.16,130.15,0.05696037]
[1725438444557,13.292,130.16,130.15,0.05696037]
[1725438448174,3.842,130.16,130.15,0.05696037]
[1725438448370,13.292,130.16,130.15,0.05696037]
[1725438450469,9.45,130.16,130.07,13.5273]
[1725438450774,9.45,130.13,130.08,2.40128358]
[1725438451075,3.79881157,130.12,130.07,13.5273]
[1725438451267,3.79881157,130.12,130.08,2.4011844]
[1725438451467,0.0570616,130.11,130.09,3.89927506]
[1725438452573,0.0570616,130.11,130.1,3.8437]
[1725438453265,3.8426,130.14,130.1,13.2937]
[1725438453668,9.45,130.17,130.11,9.45]
[1725438453865,3.8424,130.15,130.11,9.45]
[1725438454071,3.8424,130.15,130.12,3.8431]
[1725438454268,3.8424,130.15,130.12,3.89308938]
[1725438454469,3.8935635,130.15,130.12,3.89308938]
[1725438454672,3.8935635,130.15,130.12,0.04998938]
[1725438459280,9.5011635,130.15,130.12,0.04998938]
[1725438460083,3.8427,130.14,130.12,0.04998938]
[1725438460379,9.5011635,130.15,130.12,0.04998938]
[1725438460573,3.8428,130.14,130.12,0.04998938]
[1725438463881,7.78046792,130.13,130.12,0.04998938]
[1725438464081,17.23046792,130.13,130.12,0.04998938]
[1725438466983,3.8427,130.14,130.12,0.04998938]
[1725438472782,0.0511635,130.15,130.12,9.49998938]
[1725438472990,13.26127385,130.2,130.14,9.45]